{"text_format":"1","workbook":"xlsx","n_sheets":1,"sheets":["物品用"],"not_rendered":{"charts":0,"images":3,"macros":1,"external_links":0,"defined_names":1,"comments":1,"pivot_tables":0},"unopened":[],"bounds":{"document_bytes":16777216,"sheet_cells":100000,"rows_first":2000,"rows_last":500,"rows_between":2000,"halvings":0,"cell_chars":16384,"cell_head_chars":4096},"cells_cut":0,"cells_raw":0,"read":"whole","date_system":"1900"}

{"sheet":"物品用","index":0,"n_rows":127,"n_cols":130,"rows_kept":127,"cut":false,"hidden":false,"merged":[[101,26,103,29],[101,30,102,32],[125,83,125,98],[125,99,125,108],[125,109,125,113],[125,33,125,58],[125,59,125,63],[85,55,85,73],[122,83,122,98],[122,99,122,108],[122,109,122,113],[122,33,122,58],[122,59,122,63],[123,33,123,58],[123,59,123,63],[124,33,124,58],[124,59,124,63],[107,64,107,69],[107,70,107,82],[121,83,121,98],[121,99,121,108],[91,28,91,40],[103,30,103,32],[105,20,105,32],[105,64,105,69],[103,33,103,59],[107,83,107,98],[107,99,107,108],[107,109,107,113],[70,83,70,98],[71,83,71,98],[106,114,106,136],[107,114,107,136],[126,20,126,82],[126,83,126,98],[126,109,126,113],[126,99,126,108],[123,83,123,98],[123,99,123,108],[123,109,123,113],[124,20,124,32],[124,64,124,69],[124,70,124,82],[124,83,124,98],[124,99,124,108],[124,109,124,113],[123,70,123,82],[125,20,125,32],[125,64,125,69],[125,70,125,82],[73,114,73,136],[70,114,70,136],[71,114,71,136],[72,114,72,136],[84,118,84,129],[69,114,69,136],[75,114,75,136],[106,83,106,98],[106,99,106,108],[106,109,106,113],[78,114,78,136],[76,114,76,136],[105,99,105,108],[105,109,105,113],[78,99,78,108],[78,109,78,113],[76,109,76,113],[77,99,77,108],[77,109,77,113],[79,109,79,113],[78,83,78,98],[79,83,79,98],[78,70,78,82],[94,111,94,128],[95,78,95,128],[97,78,97,128],[98,78,98,124],[98,125,98,128],[84,106,84,117],[90,114,90,129],[84,94,84,105],[80,114,80,136],[81,114,81,136],[81,99,81,108],[79,70,79,82],[79,99,79,108],[80,99,80,108],[80,109,80,113],[81,20,81,82],[81,109,81,113],[80,83,80,98],[81,83,81,98],[80,59,80,63],[55,79,55,109],[62,83,62,98],[60,99,60,108],[60,109,60,113],[61,99,61,108],[34,109,34,113],[35,109,35,113],[69,109,69,113],[78,64,78,69],[70,70,70,82],[75,109,75,113],[77,83,77,98],[72,83,72,98],[73,83,73,98],[74,83,74,98],[75,99,75,108],[76,70,76,82],[76,99,76,108],[75,83,75,98],[76,83,76,98],[70,99,70,108],[70,109,70,113],[71,99,71,108],[67,109,67,113],[68,99,68,108],[71,109,71,113],[72,99,72,108],[72,109,72,113],[73,99,73,108],[73,109,73,113],[72,70,72,82],[74,70,74,82],[73,70,73,82],[74,99,74,108],[74,109,74,113],[31,114,31,136],[32,70,32,82],[31,64,31,69],[32,64,32,69],[39,118,39,129],[40,118,43,129],[62,99,62,108],[62,109,62,113],[60,83,60,98],[61,83,61,98],[62,64,62,69],[62,70,62,82],[52,79,52,129],[33,114,33,136],[55,110,55,129],[60,114,60,136],[53,79,53,125],[54,101,54,109],[54,110,54,129],[51,79,51,129],[53,126,53,129],[54,79,54,87],[35,114,35,136],[54,88,54,100],[34,114,34,136],[36,20,36,82],[48,100,48,102],[15,109,15,113],[36,99,36,108],[16,109,16,113],[17,109,17,113],[18,109,18,113],[19,109,19,113],[20,109,20,113],[21,109,21,113],[22,109,22,113],[23,109,23,113],[24,109,24,113],[25,109,25,113],[26,109,26,113],[27,109,27,113],[28,109,28,113],[29,109,29,113],[30,109,30,113],[31,109,31,113],[32,109,32,113],[33,109,33,113],[33,99,33,108],[35,99,35,108],[31,83,31,98],[32,83,32,98],[33,83,33,98],[34,83,34,98],[35,83,35,98],[35,33,35,58],[34,59,34,63],[35,59,35,63],[36,7,36,9],[18,10,18,11],[19,10,19,11],[20,10,20,11],[21,10,21,11],[22,10,22,11],[23,10,23,11],[24,10,24,11],[25,10,25,11],[26,10,26,11],[27,10,27,11],[29,7,29,9],[30,7,30,9],[31,7,31,9],[32,7,32,9],[33,7,33,9],[28,7,28,9],[28,10,28,11],[29,10,29,11],[30,10,30,11],[31,10,31,11],[32,10,32,11],[101,78,103,84],[105,83,105,98],[106,70,106,82],[97,44,99,47],[97,48,99,51],[97,52,99,55],[97,56,99,59],[101,65,102,76],[97,60,99,63],[97,64,99,67],[97,68,99,71],[97,72,99,75],[102,85,103,128],[105,114,105,136],[105,33,105,58],[105,59,105,63],[106,33,106,58],[106,59,106,63],[105,70,105,82],[103,65,103,76],[103,60,103,64],[128,109,128,122],[119,114,119,136],[120,114,120,136],[121,114,121,136],[126,114,126,136],[125,114,125,136],[119,20,119,32],[114,64,114,69],[114,70,114,82],[114,114,114,136],[115,114,115,136],[122,20,122,32],[122,64,122,69],[122,70,122,82],[122,114,122,136],[119,70,119,82],[120,70,120,82],[115,83,115,98],[115,99,115,108],[115,109,115,113],[121,20,121,32],[115,70,115,82],[120,109,120,113],[117,109,117,113],[106,20,106,32],[106,64,106,69],[100,78,100,108],[100,109,100,128],[85,105,88,105],[85,106,88,117],[94,78,94,101],[94,102,94,110],[97,26,99,39],[99,109,99,128],[96,78,96,128],[93,38,93,61],[93,78,93,89],[93,90,93,92],[93,93,93,98],[93,99,93,101],[93,102,93,107],[93,108,93,110],[95,26,95,58],[97,40,99,43],[85,118,88,129],[99,78,99,86],[99,87,99,99],[99,100,99,108],[76,3,77,3],[76,4,77,4],[76,5,77,6],[76,7,77,9],[89,37,89,86],[78,3,79,3],[78,4,79,4],[78,5,79,6],[78,7,79,9],[79,20,79,32],[77,20,77,32],[78,20,78,32],[80,20,80,32],[80,64,80,69],[80,70,80,82],[82,75,83,91],[77,64,77,69],[76,20,76,32],[79,33,79,58],[77,70,77,82],[78,33,78,58],[78,59,78,63],[79,59,79,63],[80,33,80,58],[67,3,71,3],[67,4,71,4],[74,3,75,3],[74,4,75,4],[74,5,75,6],[74,7,75,9],[75,64,75,69],[75,70,75,82],[75,20,75,32],[72,3,73,3],[72,4,73,4],[72,5,73,6],[72,7,73,9],[72,10,73,10],[70,20,70,32],[71,20,71,32],[72,20,72,32],[67,5,71,6],[67,7,71,9],[63,10,71,10],[65,20,65,32],[65,64,65,69],[65,70,65,82],[70,64,70,69],[63,20,63,32],[71,64,71,69],[63,70,63,82],[64,70,64,82],[64,20,64,32],[66,64,66,69],[67,64,67,69],[65,33,65,58],[65,59,65,63],[71,33,71,58],[71,59,71,63],[68,20,68,32],[67,20,67,32],[66,20,66,32],[71,70,71,82],[66,33,66,58],[66,59,66,63],[67,33,67,58],[67,59,67,63],[68,33,68,58],[68,59,68,63],[69,33,69,58],[69,59,69,63],[70,33,70,58],[59,7,59,9],[56,66,57,77],[56,79,58,85],[57,86,58,129],[62,114,62,136],[63,3,64,3],[63,4,64,4],[63,5,64,6],[63,7,64,9],[61,5,61,6],[61,7,61,9],[61,20,61,32],[61,64,61,69],[61,70,61,82],[61,114,61,136],[62,5,62,6],[62,7,62,9],[62,20,62,32],[58,66,58,77],[60,20,60,32],[60,64,60,69],[60,70,60,82],[63,64,63,69],[64,64,64,69],[38,2,38,6],[35,7,35,9],[34,7,34,9],[50,7,50,9],[49,7,49,9],[52,3,52,4],[52,27,54,40],[54,3,54,4],[54,12,54,13],[36,12,36,13],[37,12,37,13],[38,7,38,9],[34,12,34,13],[35,12,35,13],[34,10,34,11],[35,10,35,11],[36,10,36,11],[37,10,37,11],[38,10,38,11],[34,20,34,32],[35,20,35,32],[38,12,38,13],[37,7,37,9],[37,14,37,17],[57,2,58,2],[57,3,58,3],[57,6,58,6],[57,10,57,17],[58,31,58,33],[53,3,53,4],[53,6,54,6],[53,10,53,11],[53,12,53,13],[55,11,56,12],[55,13,56,17],[56,27,58,30],[56,31,57,33],[15,114,15,136],[16,114,16,136],[17,114,17,136],[19,114,19,136],[20,114,20,136],[21,114,21,136],[15,99,15,108],[16,99,16,108],[17,99,17,108],[18,99,18,108],[19,99,19,108],[20,99,20,108],[21,99,21,108],[18,114,18,136],[18,14,18,17],[18,20,18,32],[17,12,17,13],[18,12,18,13],[19,12,19,13],[20,12,20,13],[21,12,21,13],[15,7,15,17],[19,14,19,17],[18,7,18,9],[19,7,19,9],[13,7,13,9],[13,10,13,17],[13,31,13,33],[17,7,17,9],[17,14,17,17],[15,83,15,97],[17,10,17,11],[16,83,16,98],[17,83,17,98],[15,20,15,32],[15,70,15,82],[16,20,16,32],[16,70,16,82],[15,64,15,69],[16,64,16,69],[16,13,16,18],[17,20,17,32],[17,70,17,82],[15,59,15,63],[15,33,15,58],[16,33,16,58],[17,33,17,58],[16,59,16,63],[17,59,17,63],[9,12,9,13],[9,79,9,87],[9,88,9,100],[9,101,9,109],[13,34,13,60],[13,61,13,65],[13,66,13,77],[11,13,12,17],[11,27,13,30],[11,31,12,33],[11,34,12,60],[11,61,12,65],[11,66,12,77],[7,65,9,68],[7,69,9,72],[7,73,9,76],[10,79,10,109],[11,79,13,85],[12,86,13,129],[10,110,10,129],[2,23,2,36],[2,107,2,125],[3,7,3,9],[3,39,3,62],[3,79,3,90],[3,91,3,93],[3,94,3,99],[3,100,3,102],[3,103,3,108],[3,109,3,111],[7,3,7,4],[7,6,8,6],[7,7,7,17],[7,79,7,129],[8,3,8,4],[8,7,8,17],[8,79,8,125],[8,126,8,129],[11,2,12,2],[11,3,12,3],[11,6,12,6],[11,7,12,10],[11,11,12,12],[9,110,9,129],[10,6,10,11],[10,12,10,13],[7,27,9,40],[7,41,9,44],[7,45,9,48],[7,49,9,52],[7,53,9,56],[7,57,9,60],[7,61,9,64],[9,10,9,11],[4,7,4,9],[4,79,4,102],[4,103,4,111],[4,112,4,129],[5,7,5,17],[5,29,5,69],[6,3,6,4],[6,7,6,17],[6,79,6,129],[5,79,5,102],[5,103,5,111],[5,112,5,129],[26,20,26,32],[25,20,25,32],[19,20,19,32],[22,12,22,13],[23,12,23,13],[24,12,24,13],[25,12,25,13],[26,12,26,13],[27,12,27,13],[24,20,24,32],[27,20,27,32],[23,20,23,32],[21,20,21,32],[22,20,22,32],[25,14,25,17],[26,14,26,17],[27,14,27,17],[20,20,20,32],[28,12,28,13],[29,12,29,13],[30,12,30,13],[31,12,31,13],[32,12,32,13],[33,12,33,13],[33,10,33,11],[25,7,25,9],[26,7,26,9],[27,7,27,9],[17,64,17,69],[27,70,27,82],[19,70,19,82],[20,70,20,82],[18,70,18,82],[23,64,23,69],[24,64,24,69],[25,64,25,69],[26,64,26,69],[23,70,23,82],[26,99,26,108],[27,99,27,108],[28,99,28,108],[29,99,29,108],[30,99,30,108],[23,99,23,108],[18,64,18,69],[19,64,19,69],[22,70,22,82],[22,99,22,108],[18,83,18,98],[19,83,19,98],[20,83,20,98],[21,83,21,98],[22,83,22,98],[23,83,23,98],[24,83,24,98],[25,83,25,98],[26,83,26,98],[38,14,38,17],[36,14,36,17],[36,114,36,136],[29,33,29,58],[30,33,30,58],[31,33,31,58],[32,33,32,58],[33,33,33,58],[34,33,34,58],[29,59,29,63],[30,59,30,63],[31,59,31,63],[32,59,32,63],[33,59,33,63],[31,20,31,32],[32,20,32,32],[31,70,31,82],[33,64,33,69],[33,70,33,82],[29,83,29,98],[30,83,30,98],[29,114,29,136],[30,114,30,136],[34,99,34,108],[31,99,31,108],[32,99,32,108],[27,33,27,58],[28,33,28,58],[23,114,23,136],[24,114,24,136],[32,114,32,136],[21,70,21,82],[28,70,28,82],[29,70,29,82],[30,70,30,82],[27,59,27,63],[28,59,28,63],[27,114,27,136],[25,70,25,82],[26,70,26,82],[25,114,25,136],[26,114,26,136],[27,83,27,98],[28,83,28,98],[28,114,28,136],[24,70,24,82],[24,99,24,108],[25,99,25,108],[31,14,31,17],[34,14,34,17],[35,14,35,17],[34,64,34,69],[34,70,34,82],[35,64,35,69],[35,70,35,82],[32,14,32,17],[33,14,33,17],[33,20,33,32],[27,64,27,69],[28,64,28,69],[29,64,29,69],[28,20,28,32],[29,20,29,32],[30,20,30,32],[30,64,30,69],[28,14,28,17],[29,14,29,17],[30,14,30,17],[36,83,36,97],[48,103,48,108],[48,109,48,111],[49,79,49,102],[49,103,49,111],[49,112,49,129],[50,29,50,69],[50,79,50,129],[45,112,45,129],[46,29,46,42],[46,106,46,124],[48,39,48,62],[48,79,48,90],[48,91,48,93],[48,94,48,99],[36,109,36,113],[40,55,40,73],[39,94,39,105],[66,114,66,136],[69,99,69,108],[68,114,68,136],[39,106,39,117],[40,82,43,93],[40,105,43,105],[40,106,43,117],[37,75,38,91],[39,82,39,93],[69,83,69,98],[65,114,65,136],[45,38,45,87],[56,34,57,60],[52,45,54,48],[52,49,54,52],[52,53,54,56],[52,57,54,60],[52,61,54,64],[56,61,57,65],[58,34,58,60],[58,61,58,65],[52,41,54,44],[52,65,54,68],[63,99,63,108],[52,69,54,72],[52,73,54,76],[61,109,61,113],[64,109,64,113],[65,99,65,108],[65,109,65,113],[69,64,69,69],[69,70,69,82],[66,99,66,108],[66,109,66,113],[64,83,64,98],[65,83,65,98],[67,99,67,108],[68,109,68,113],[66,83,66,98],[67,83,67,98],[68,83,68,98],[68,64,68,69],[66,70,66,82],[67,70,67,82],[68,70,68,82],[64,99,64,108],[63,109,63,113],[63,83,63,98],[118,99,118,108],[115,20,115,32],[115,64,115,69],[118,20,118,32],[118,64,118,69],[118,70,118,82],[118,109,118,113],[119,83,119,98],[119,99,119,108],[119,109,119,113],[121,33,121,58],[121,59,121,63],[121,109,121,113],[114,20,114,32],[116,83,116,98],[116,99,116,108],[116,109,116,113],[120,20,120,32],[114,83,114,98],[114,99,114,108],[114,109,114,113],[117,83,117,98],[117,99,117,108],[117,33,117,58],[117,59,117,63],[118,33,118,58],[118,59,118,63],[119,33,119,58],[119,59,119,63],[120,33,120,58],[120,59,120,63],[120,99,120,108],[114,33,114,58],[118,83,118,98],[110,33,110,58],[110,59,110,63],[111,33,111,58],[111,59,111,63],[112,33,112,58],[112,59,112,63],[113,33,113,58],[113,59,113,63],[120,83,120,98],[114,59,114,63],[115,33,115,58],[115,59,115,63],[116,33,116,58],[116,59,116,63],[113,64,113,69],[113,70,113,82],[113,114,113,136],[111,99,111,108],[111,109,111,113],[111,20,111,32],[112,99,112,108],[112,109,112,113],[113,83,113,98],[113,99,113,108],[113,109,113,113],[111,114,111,136],[112,70,112,82],[112,114,112,136],[112,83,112,98],[112,20,112,32],[112,64,112,69],[111,64,111,69],[111,83,111,98],[107,20,107,32],[74,20,74,32],[124,114,124,136],[118,114,118,136],[116,20,116,32],[116,64,116,69],[116,70,116,82],[116,114,116,136],[117,20,117,32],[117,64,117,69],[117,70,117,82],[117,114,117,136],[121,70,121,82],[119,64,119,69],[120,64,120,69],[121,64,121,69],[123,20,123,32],[123,64,123,69],[123,114,123,136],[111,70,111,82],[113,20,113,32],[108,114,108,136],[109,20,109,32],[110,20,110,32],[110,64,110,69],[109,70,109,82],[110,70,110,82],[109,114,109,136],[110,114,110,136],[109,83,109,98],[109,99,109,108],[109,109,109,113],[110,83,110,98],[110,99,110,108],[110,109,110,113],[108,20,108,32],[108,64,108,69],[108,70,108,82],[108,33,108,58],[108,59,108,63],[109,33,109,58],[108,83,108,98],[108,99,108,108],[108,109,108,113],[109,64,109,69],[109,59,109,63],[73,20,73,32],[69,20,69,32],[79,114,79,136],[74,114,74,136],[77,114,77,136],[0,2,1,17],[0,22,1,137],[22,114,22,136],[20,7,20,9],[20,14,20,17],[23,7,23,9],[23,14,23,17],[24,7,24,9],[24,14,24,17],[21,7,21,9],[22,7,22,9],[21,14,21,17],[22,14,22,17],[20,64,20,69],[21,64,21,69],[22,64,22,69],[67,114,67,136],[63,114,63,136],[64,114,64,136],[18,33,18,58],[19,33,19,58],[20,33,20,58],[21,33,21,58],[22,33,22,58],[23,33,23,58],[24,33,24,58],[25,33,25,58],[26,33,26,58],[18,59,18,63],[19,59,19,63],[20,59,20,63],[21,59,21,63],[22,59,22,63],[23,59,23,63],[24,59,24,63],[25,59,25,63],[26,59,26,63],[60,33,60,58],[60,59,60,63],[61,33,61,58],[61,59,61,63],[62,33,62,58],[62,59,62,63],[63,33,63,58],[63,59,63,63],[64,33,64,58],[64,59,64,63],[107,33,107,58],[107,59,107,63],[70,59,70,63],[74,33,74,58],[74,59,74,63],[75,33,75,58],[75,59,75,63],[76,33,76,58],[76,59,76,63],[77,33,77,58],[77,59,77,63],[101,33,102,59],[101,60,102,64],[76,64,76,69],[72,64,72,69],[74,64,74,69],[73,64,73,69],[72,33,72,58],[72,59,72,63],[73,33,73,58],[73,59,73,63],[79,64,79,69]]}
[null,null,"入力エリア（白枠内に入力して下さい）",null,null,null,null,null,null,null,null,null,null,null,null,null,null,null,null,null,null,null,"出力エリア（こちらが印刷されます。）"]
[]
[null,null,null,null,null,null,null,null,null,null,null,null,null,null,null,null,null,null,null,null,null,null,null,"提出用",null,null,null,null,null,null,null,null,null,null,null,null,null,null,null,null,null,null,null,null,null,null,null,null,null,null,null,null,null,null,null,null,null,null,null,null,null,null,null,null,null,null,null,null,null,null,null,null,null,null,null,null,null,null,null,null,null,null,null,null,null,null,null,null,null,null,null,null,null,null,null,null,null,null,null,null,null,null,null,null,null,null,null,"物　品 用"]
[null,null,null,null,null,null," 請求年月日",null,null,null,"入力例　2015/10/31",null,null,null,null,null,null,null,null,null,null,null,null,null,null,null,null,null,null,null,null,null,null,null,null,null,null,null,null,"請求書",null,null,null,null,null,null,null,null,null,null,null,null,null,null,null,null,null,null,null,null,null,null,null,null,null,null,null,null,null,null,null,null,null,null,null,null,null,null,null,{"$f":"IF(H4=\"\",\"\",H4)","v":""},null,null,null,null,null,null,null,null,null,null,null,"年",null,null,{"$f":"IF(H4=\"\",\"\",H4)","v":""},null,null,null,null,null,"月",null,null,{"$f":"IF(H4=\"\",\"\",H4)","v":""},null,null,null,null,null,"日"]
[null,null,null,null,null,null,null,null,null,null,null,null,null,null,null,null,null,null,null,null,null,null,null,null,null,null,null,null,null,null,null,null,null,null,null,null,null,null,null,null,null,null,null,null,null,null,null,null,null,null,null,null,null,null,null,null,null,null,null,null,null,null,null,null,null,null,null,null,null,null,null,null,null,null,null,null,null,null,null,null,null,null,null,null,null,null,null,null,null,null,null,null,null,null,null,null,null,null,null,null,null,null,null,null,null,null,null,null,null,null,null,null,{"$f":"IF(H5=\"\",\"\",H5)","v":""}]
[null,null,null,"入力後印刷ボタンを押すと請求書が印刷されます。",null,null,null,null,null,null,null,null,null,null,null,null,null,null,null,null,null,null,null,null,null,null,null,null,null,"日本フィールドシステム株式会社　御中",null,null,null,null,null,null,null,null,null,null,null,null,null,null,null,null,null,null,null,null,null,null,null,null,null,null,null,null,null,null,null,null,null,null,null,null,null,null,null,null,null,null,null,null,null,null,null,null,null,"【請求者】住所／商号等",null,null,null,null,null,null,null,null,null,null,null,null,null,null,null,null,null,null,null,null,null,null,null,null,null,null,null,null,null,null,null,null,{"$f":"IF(H6=\"\",\"\",H6)","v":""}]
[null,null,null,null,null,null," 請求者住所",null,null,null,null,null,null,null,null,null,null,null,null,null,null,null,null,null,null,null,null,"下記のとおり請求致します。",null,null,null,null,null,null,null,null,null,null,null,null,null,null,null,null,null,null,null,null,null,null,null,null,null,null,null,null,null,null,null,null,null,null,null,null,null,null,null,null,null,null,null,null,null,null,null,null,null,null,null,{"$f":"IF(H7=\"\",\"\",H7)","v":""}]
[null,null,null,null,null,null,"商 号 等",null,null,null,null,null,null,null,null,null,null,null,null,null,null,null,null,null,null,null,null,"請 求 金 額\n(消費税込)",null,null,null,null,null,null,null,null,null,null,null,null,null,{"$f":"IF(D12=0,\"\",IF(LEN(D12)<9,IF(LEN(D12)=8,\"\\\",\"\"),MID(D12,LEN(D12)-8,1)))","v":""},null,null,null,{"$f":"IF(D12=0,\"\",IF(LEN(D12)<8,IF(LEN(D12)=7,\"\\\",\"\"),MID(D12,LEN(D12)-7,1)))","v":""},null,null,null,{"$f":"IF(D12=0,\"\",IF(LEN(D12)<7,IF(LEN(D12)=6,\"\\\",\"\"),MID(D12,LEN(D12)-6,1)))","v":""},null,null,null,{"$f":"IF(D12=0,\"\",IF(LEN(D12)<6,IF(LEN(D12)=5,\"\\\",\"\"),MID(D12,LEN(D12)-5,1)))","v":""},null,null,null,{"$f":"IF(D12=0,\"\",IF(LEN(D12)<5,IF(LEN(D12)=4,\"\\\",\"\"),MID(D12,LEN(D12)-4,1)))","v":""},null,null,null,{"$f":"IF(D12=0,\"\",IF(LEN(D12)<4,IF(LEN(D12)=3,\"\\\",\"\"),MID(D12,LEN(D12)-3,1)))","v":""},null,null,null,{"$f":"IF(D12=0,\"\",IF(LEN(D12)<3,IF(LEN(D12)=2,\"\\\",\"\"),MID(D12,LEN(D12)-2,1)))","v":""},null,null,null,{"$f":"IF(D12=0,\"\",IF(LEN(D12)<2,IF(LEN(D12)=1,\"\\\",\"\"),MID(D12,LEN(D12)-1,1)))","v":""},null,null,null,{"$f":"IF(D12<1,\"\",MID(D12,LEN(D12),1))","v":""},null,null,null,null,null,{"$f":"IF(H8=\"\",\"\",H8)","v":""}]
[null,null,null,null,null,null,null,null,null,null,null,null,null,null,null,null,null,null,null,null,null,null,null,null,null,null,null,null,null,null,null,null,null,null,null,null,null,null,null,null,null,null,null,null,null,null,null,null,null,null,null,null,null,null,null,null,null,null,null,null,null,null,null,null,null,null,null,null,null,null,null,null,null,null,null,null,null,null,null,{"$f":"IF(H9=\"\",\"\",H9)","v":""},null,null,null,null,null,null,null,null,null,null,null,null,null,null,null,null,null,null,null,null,null,null,null,null,null,null,null,null,null,null,null,null,null,null,null,null,null,null,null,null,null,null,null,null,null,null,"㊞"]
[null,null,null,null,null,null," 郵便番号",null,"－",null," 電話番号",null,null,null,"－",null,"－",null,null,null,null,null,null,null,null,null,null,null,null,null,null,null,null,null,null,null,null,null,null,null,null,null,null,null,null,null,null,null,null,null,null,null,null,null,null,null,null,null,null,null,null,null,null,null,null,null,null,null,null,null,null,null,null,null,null,null,null,null,null,"郵便番号",null,null,null,null,null,null,null,null,{"$f":"IF(H10=\"\",\"\",H10&\"-\"&J10)","v":""},null,null,null,null,null,null,null,null,null,null,null,null,"電話番号",null,null,null,null,null,null,null,null,{"$f":"IF(P10=\"\",\"\",M10&\"-\"&P10&\"-\"&R10)","v":""}]
[false,null,null,null,null,null,null,null,null,null,null,null,null,null,null,null,null,null,null,null,null,null,null,null,null,null,null,null,null,null,null,null,null,null,null,null,null,null,null,null,null,null,null,null,null,null,null,null,null,null,null,null,null,null,null,null,null,null,null,null,null,null,null,null,null,null,null,null,null,null,null,null,null,null,null,null,null,null,null,null,null,null,null,null,null,null,null,null,null,null,null,null,null,null,null,null,null,null,null,null,null,null,null,null,null,null,null,null,null,null,{"$f":"IF(P11=\"\",\"\",M11&\"-\"&P11&\"-\"&R11)","v":""}]
[null,null," 請求金額\n(消費税込)",{"$f":"H39+K39","v":0},null,null,"金融機関名",null,null,null,null,"支店名",null,null,null,null,null,null,null,null,null,null,null,null,null,null,null,"振込\n先",null,null,null,"金融機関",null,null,{"$f":"H12","v":0},null,null,null,null,null,null,null,null,null,null,null,null,null,null,null,null,null,null,null,null,null,null,null,null,null,null,"預金種別",null,null,null,null,{"$f":"IF(A11,\"普通\",IF(A13,\"当座\",\"普通\n当座\"))","v":"普通\n当座"},null,null,null,null,null,null,null,null,null,null,null,null,"口座 名義",null,null,null,null,null,null,null,null,null,null,null,null,null,null,null,null,null,null,null,null,null,null,null,null,null,null,null,null,null,null,null,null,null,null,null,null,null,null,null,null,null,null,null,null,null,null,null,null,null,"(※)カナで記入して下さい。"]
[false,null,null,null,null,null,null,null,null,null,null,null,null,null,null,null,null,null,null,null,null,null,null,null,null,null,null,null,null,null,null,null,null,null,null,null,null,null,null,null,null,null,null,null,null,null,null,null,null,null,null,null,null,null,null,null,null,null,null,null,null,null,null,null,null,null,null,null,null,null,null,null,null,null,null,null,null,null,null,null,null,null,null,null,null,null,{"$f":"IF(H16=\"\",\"\",H16)","v":""}]
[true,null,null,null,null,null," 口座番号",null,null,null,null,null,null,null,null,null,null,null,null,null,null,null,null,null,null,null,null,null,null,null,null,"支店",null,null,{"$f":"N12","v":0},null,null,null,null,null,null,null,null,null,null,null,null,null,null,null,null,null,null,null,null,null,null,null,null,null,null,"口座\n番号",null,null,null,null,{"$f":"IF(H14=\"\",\"\",H14)","v":""}]
[null,null,null,null,null,null,null,null,null,null,"↑","選択して下さい"]
[null,null,null,null,null,null," 口座名義",null,null,null,null,null,null,null,null,null,null,null,null,null,{"$f":"C18","v":"納 品 月 日"},null,null,null,null,null,null,null,null,null,null,null,null,{"$f":"D18","v":"品　　目"},null,null,null,null,null,null,null,null,null,null,null,null,null,null,null,null,null,null,null,null,null,null,null,null,null,{"$f":"E18","v":"数 量"},null,null,null,null,{"$f":"F18","v":"単位"},null,null,null,null,null,{"$f":"G18","v":"単　　価"},null,null,null,null,null,null,null,null,null,null,null,null,{"$f":"H18","v":"金　　額"},null,null,null,null,null,null,null,null,null,null,null,null,null,null,null,{"$f":"K18","v":"消費税"},null,null,null,null,null,null,null,null,null,"税率",null,null,null,null,{"$f":"O18","v":"納品場所・備　考"}]
[null,null,null,null,null,null,null,"(※)カナで記入して下さい。",null,null,null,null,null,"※税込の場合「税込」を選択してください。",null,null,null,null,null,null,{"$f":"IF(C19=\"\",\"\",C19)","v":""},null,null,null,null,null,null,null,null,null,null,null,null,{"$f":"D19","v":0},null,null,null,null,null,null,null,null,null,null,null,null,null,null,null,null,null,null,null,null,null,null,null,null,null,{"$f":"E19","v":0},null,null,null,null,{"$f":"F19","v":0},null,null,null,null,null,{"$f":"G19","v":0},null,null,null,null,null,null,null,null,null,null,null,null,{"$f":"H19","v":0},null,null,null,null,null,null,null,null,null,null,null,null,null,null,null,{"$f":"K19","v":0},null,null,null,null,null,null,null,null,null,{"$f":"M19","v":8},null,null,null,null,{"$f":"O19","v":0}]
[null,null,"納 品 月 日","品　　目","数 量","単位","単　　価","金　　額",null,null,"消費税",null,"税率",null,"納品場所・備　考",null,null,null,null,null,{"$f":"IF(C20=\"\",\"\",C20)","v":""},null,null,null,null,null,null,null,null,null,null,null,null,{"$f":"D20","v":0},null,null,null,null,null,null,null,null,null,null,null,null,null,null,null,null,null,null,null,null,null,null,null,null,null,{"$f":"E20","v":0},null,null,null,null,{"$f":"F20","v":0},null,null,null,null,null,{"$f":"G20","v":0},null,null,null,null,null,null,null,null,null,null,null,null,{"$f":"H20","v":0},null,null,null,null,null,null,null,null,null,null,null,null,null,null,null,0,null,null,null,null,null,null,null,null,null,{"$f":"M20","v":8},null,null,null,null,{"$f":"O20","v":0}]
[null,null,null,null,null,null,null,{"$f":"E19*G19","v":0},null,null,{"$f":"IF(M19=\"税込\",0,(ROUND(H19*M19/100,0)))","v":0},null,8,null,null,null,null,null,null,null,{"$f":"IF(C21=\"\",\"\",C21)","v":""},null,null,null,null,null,null,null,null,null,null,null,null,0,null,null,null,null,null,null,null,null,null,null,null,null,null,null,null,null,null,null,null,null,null,null,null,null,null,0,null,null,null,null,{"$f":"F21","v":0},null,null,null,null,null,{"$f":"G21","v":0},null,null,null,null,null,null,null,null,null,null,null,null,0,null,null,null,null,null,null,null,null,null,null,null,null,null,null,null,0,null,null,null,null,null,null,null,null,null,8,null,null,null,null,{"$f":"O21","v":0}]
[null,null,null,null,null,null,null,{"$f":"E20*G20","v":0},null,null,{"$f":"IF(M20=\"税込\",0,(ROUND(H20*M20/100,0)))","v":0},null,8,null,null,null,null,null,null,null,"",null,null,null,null,null,null,null,null,null,null,null,null,0,null,null,null,null,null,null,null,null,null,null,null,null,null,null,null,null,null,null,null,null,null,null,null,null,null,0,null,null,null,null,0,null,null,null,null,null,{"$f":"G22","v":0},null,null,null,null,null,null,null,null,null,null,null,null,0,null,null,null,null,null,null,null,null,null,null,null,null,null,null,null,0,null,null,null,null,null,null,null,null,null,{"$f":"M22","v":8},null,null,null,null,0]
[null,null,null,null,null,null,null,{"$f":"E21*G21","v":0},null,null,0,null,8,null,null,null,null,null,null,null,"",null,null,null,null,null,null,null,null,null,null,null,null,0,null,null,null,null,null,null,null,null,null,null,null,null,null,null,null,null,null,null,null,null,null,null,null,null,null,0,null,null,null,null,0,null,null,null,null,null,{"$f":"G23","v":0},null,null,null,null,null,null,null,null,null,null,null,null,0,null,null,null,null,null,null,null,null,null,null,null,null,null,null,null,0,null,null,null,null,null,null,null,null,null,8,null,null,null,null,0]
[null,null,null,null,null,null,null,0,null,null,0,null,8,null,null,null,null,null,null,null,"",null,null,null,null,null,null,null,null,null,null,null,null,0,null,null,null,null,null,null,null,null,null,null,null,null,null,null,null,null,null,null,null,null,null,null,null,null,null,0,null,null,null,null,0,null,null,null,null,null,0,null,null,null,null,null,null,null,null,null,null,null,null,0,null,null,null,null,null,null,null,null,null,null,null,null,null,null,null,0,null,null,null,null,null,null,null,null,null,8,null,null,null,null,0]
[null,null,null,null,null,null,null,0,null,null,0,null,8,null,null,null,null,null,null,null,"",null,null,null,null,null,null,null,null,null,null,null,null,0,null,null,null,null,null,null,null,null,null,null,null,null,null,null,null,null,null,null,null,null,null,null,null,null,null,0,null,null,null,null,{"$f":"F25","v":0},null,null,null,null,null,0,null,null,null,null,null,null,null,null,null,null,null,null,0,null,null,null,null,null,null,null,null,null,null,null,null,null,null,null,0,null,null,null,null,null,null,null,null,null,8,null,null,null,null,{"$f":"O25","v":0}]
[null,null,null,null,null,null,null,0,null,null,0,null,8,null,null,null,null,null,null,null,"",null,null,null,null,null,null,null,null,null,null,null,null,0,null,null,null,null,null,null,null,null,null,null,null,null,null,null,null,null,null,null,null,null,null,null,null,null,null,0,null,null,null,null,0,null,null,null,null,null,0,null,null,null,null,null,null,null,null,null,null,null,null,0,null,null,null,null,null,null,null,null,null,null,null,null,null,null,null,0,null,null,null,null,null,null,null,null,null,8,null,null,null,null,0]
[null,null,null,null,null,null,null,0,null,null,0,null,8,null,null,null,null,null,null,null,"",null,null,null,null,null,null,null,null,null,null,null,null,0,null,null,null,null,null,null,null,null,null,null,null,null,null,null,null,null,null,null,null,null,null,null,null,null,null,0,null,null,null,null,0,null,null,null,null,null,0,null,null,null,null,null,null,null,null,null,null,null,null,0,null,null,null,null,null,null,null,null,null,null,null,null,null,null,null,0,null,null,null,null,null,null,null,null,null,8,null,null,null,null,0]
[null,null,null,null,null,null,null,0,null,null,0,null,8,null,null,null,null,null,null,null,"",null,null,null,null,null,null,null,null,null,null,null,null,0,null,null,null,null,null,null,null,null,null,null,null,null,null,null,null,null,null,null,null,null,null,null,null,null,null,0,null,null,null,null,0,null,null,null,null,null,0,null,null,null,null,null,null,null,null,null,null,null,null,0,null,null,null,null,null,null,null,null,null,null,null,null,null,null,null,0,null,null,null,null,null,null,null,null,null,8,null,null,null,null,0]
[null,null,null,null,null,null,null,0,null,null,0,null,8,null,null,null,null,null,null,null,"",null,null,null,null,null,null,null,null,null,null,null,null,0,null,null,null,null,null,null,null,null,null,null,null,null,null,null,null,null,null,null,null,null,null,null,null,null,null,0,null,null,null,null,0,null,null,null,null,null,0,null,null,null,null,null,null,null,null,null,null,null,null,0,null,null,null,null,null,null,null,null,null,null,null,null,null,null,null,0,null,null,null,null,null,null,null,null,null,8,null,null,null,null,0]
[null,null,null,null,null,null,null,0,null,null,0,null,8,null,null,null,null,null,null,null,"",null,null,null,null,null,null,null,null,null,null,null,null,0,null,null,null,null,null,null,null,null,null,null,null,null,null,null,null,null,null,null,null,null,null,null,null,null,null,0,null,null,null,null,0,null,null,null,null,null,0,null,null,null,null,null,null,null,null,null,null,null,null,0,null,null,null,null,null,null,null,null,null,null,null,null,null,null,null,0,null,null,null,null,null,null,null,null,null,8,null,null,null,null,{"$f":"O30","v":0}]
[null,null,null,null,null,null,null,0,null,null,0,null,8,null,null,null,null,null,null,null,"",null,null,null,null,null,null,null,null,null,null,null,null,0,null,null,null,null,null,null,null,null,null,null,null,null,null,null,null,null,null,null,null,null,null,null,null,null,null,0,null,null,null,null,0,null,null,null,null,null,0,null,null,null,null,null,null,null,null,null,null,null,null,0,null,null,null,null,null,null,null,null,null,null,null,null,null,null,null,0,null,null,null,null,null,null,null,null,null,8,null,null,null,null,0]
[null,null,null,null,null,null,null,{"$f":"E30*G30","v":0},null,null,0,null,8,null,null,null,null,null,null,null,"",null,null,null,null,null,null,null,null,null,null,null,null,0,null,null,null,null,null,null,null,null,null,null,null,null,null,null,null,null,null,null,null,null,null,null,null,null,null,0,null,null,null,null,0,null,null,null,null,null,0,null,null,null,null,null,null,null,null,null,null,null,null,0,null,null,null,null,null,null,null,null,null,null,null,null,null,null,null,0,null,null,null,null,null,null,null,null,null,8,null,null,null,null,0]
[null,null,null,null,null,null,null,{"$f":"E31*G31","v":0},null,null,0,null,8,null,null,null,null,null,null,null,"",null,null,null,null,null,null,null,null,null,null,null,null,0,null,null,null,null,null,null,null,null,null,null,null,null,null,null,null,null,null,null,null,null,null,null,null,null,null,0,null,null,null,null,0,null,null,null,null,null,0,null,null,null,null,null,null,null,null,null,null,null,null,0,null,null,null,null,null,null,null,null,null,null,null,null,null,null,null,0,null,null,null,null,null,null,null,null,null,8,null,null,null,null,0]
[null,null,null,null,null,null,null,0,null,null,0,null,8,null,null,null,null,null,null,null,"",null,null,null,null,null,null,null,null,null,null,null,null,0,null,null,null,null,null,null,null,null,null,null,null,null,null,null,null,null,null,null,null,null,null,null,null,null,null,0,null,null,null,null,0,null,null,null,null,null,0,null,null,null,null,null,null,null,null,null,null,null,null,0,null,null,null,null,null,null,null,null,null,null,null,null,null,null,null,0,null,null,null,null,null,null,null,null,null,8,null,null,null,null,0]
[null,null,null,null,null,null,null,0,null,null,0,null,8,null,null,null,null,null,null,null,"",null,null,null,null,null,null,null,null,null,null,null,null,0,null,null,null,null,null,null,null,null,null,null,null,null,null,null,null,null,null,null,null,null,null,null,null,null,null,0,null,null,null,null,0,null,null,null,null,null,0,null,null,null,null,null,null,null,null,null,null,null,null,0,null,null,null,null,null,null,null,null,null,null,null,null,null,null,null,0,null,null,null,null,null,null,null,null,null,8,null,null,null,null,0]
[null,null,null,null,null,null,null,0,null,null,0,null,8,null,null,null,null,null,null,null,"",null,null,null,null,null,null,null,null,null,null,null,null,0,null,null,null,null,null,null,null,null,null,null,null,null,null,null,null,null,null,null,null,null,null,null,null,null,null,0,null,null,null,null,0,null,null,null,null,null,0,null,null,null,null,null,null,null,null,null,null,null,null,0,null,null,null,null,null,null,null,null,null,null,null,null,null,null,null,0,null,null,null,null,null,null,null,null,null,"税込",null,null,null,null,0]
[null,null,null,null,null,null,null,0,null,null,0,null,8,null,null,null,null,null,null,null,{"$f":"IF(C37=\"\",\"\",C37)","v":""},null,null,null,null,null,null,null,null,null,null,null,null,{"$f":"D37","v":0},null,null,null,null,null,null,null,null,null,null,null,null,null,null,null,null,null,null,null,null,null,null,null,null,null,0,null,null,null,null,{"$f":"F37","v":0},null,null,null,null,null,0,null,null,null,null,null,null,null,null,null,null,null,null,0,null,null,null,null,null,null,null,null,null,null,null,null,null,null,null,0,null,null,null,null,null,null,null,null,null,"税込",null,null,null,null,0]
[null,null,null,null,null,null,null,0,null,null,0,null,"税込",null,null,null,null,null,null,null,"",null,null,null,null,null,null,null,null,null,null,null,null,0,null,null,null,null,null,null,null,null,null,null,null,null,null,null,null,null,null,null,null,null,null,null,null,null,null,0,null,null,null,null,0,null,null,null,null,null,0,null,null,null,null,null,null,null,null,null,null,null,null,0,null,null,null,null,null,null,null,null,null,null,null,null,null,null,null,0,null,null,null,null,null,null,null,null,null,"税込",null,null,null,null,0]
[null,null,null,null,null,null,null,0,null,null,0,null,"税込",null,null,null,null,null,null,null,{"$f":"C39","v":"　請　求　合　計"},null,null,null,null,null,null,null,null,null,null,null,null,null,null,null,null,null,null,null,null,null,null,null,null,null,null,null,null,null,null,null,null,null,null,null,null,null,null,null,null,null,null,null,null,null,null,null,null,null,null,null,null,null,null,null,null,null,null,null,null,null,null,{"$f":"H39","v":0},null,null,null,null,null,null,null,null,null,null,null,null,null,null,null,{"$f":"K39","v":0},null,null,null,null,null,null,null,null,null,null,null,null,null,null,0]
[null,null,null,null,null,null,null,0,null,null,0,null,"税込",null,null,null,null,null,null,null,null,null,null,null,null,null,null,null,null,null,null,null,null,null,null,null,null,null,null,null,null,null,null,null,null,null,null,null,null,null,null,null,null,null,null,null,null,null,null,null,null,null,null,null,null,null,null,null,null,null,null,null,null,null,null,"以下弊社使用欄"]
[null,null,"　請　求　合　計",null,null,null,null,{"$f":"SUM(H19:J38)","v":0},null,null,{"$f":"SUM(K19:L38)","v":0}]
[null,null,null,"注意事項",null,null,null,null,null,null,null,null,null,null,null,null,null,null,null,null,null,null,"支払条件",null,null,null,null,null,null,null,null,null,null,null,null,null,null,null,null,null,null,null,null,null,null,null,null,null,null,null,null,null,null,null,null,null,null,null,null,null,null,null,null,null,null,null,null,null,null,null,null,null,null,null,null,null,null,null,null,null,null,null,"管理検印",null,null,null,null,null,null,null,null,null,null,null,"管理検印",null,null,null,null,null,null,null,null,null,null,null,"支店検印",null,null,null,null,null,null,null,null,null,null,null,"支店検印"]
[null,null,null,"(1) 毎月末締め翌月3日迄に支店へ提出してください。",null,null,null,null,null,null,null,null,null,null,null,null,null,null,null,null,null,null,"□現金100％",null,null,null,null,null,null,null,null,null,null,null,null,null,null,"□手形100％",null,null,null,null,null,null,null,null,null,null,null,null,null,null,null,null,null,"□現金50%手形50％"]
[null,null,null,"(2) 請求書は3部作成し、「提出用」2部提出して下さい。",null,null,null,null,null,null,null,null,null,null,null,null,null,null,null,null,null,null,null,"その他"]
[null,null,null,"(3) 銀行振込の場合,振込手数料は請求者負担とする。"]
[null,null,null,"(4) 入力欄の行不足または別紙請求明細書のある場合は",null,null,null,null,null,null,null,null,null,null,null,null,null,null,null,null,null,null,null,null,"※10万円以上の場合、手形100％"]
[null,null,null,"　　　　　　　　別紙添付し、合計金額のみ入力してください。"]
[null,null,null,"(5) 税込の場合は、消費税は「税込」を選択してください。",null,null,null,null,null,null,null,null,null,null,null,null,null,null,null,null,null,null,null,null,null,null,null,null,null,null,null,null,null,null,null,null,null,null,null,null,null,null,null,null,null,null,null,null,null,null,null,null,null,null,null,null,null,null,null,null,null,null,null,null,null,null,null,null,null,null,null,null,null,null,null,null,null,null,null,null,null,null,null,null,null,null,null,null,null,null,null,null,null,null,null,null,null,null,null,null,null,null,null,null,null,null,null,null,null,null,null,null,"＜管理部送付用＞"]
[null,null,null,"(6) その他不明な事項については,当社担当者と打合せの上記入して下さい。",null,null,null,null,null,null,null,null,null,null,null,null,null,null,null,null,null,null,null,null,null,null,null,null,null,"提出用",null,null,null,null,null,null,null,null,null,null,null,null,null,null,null,null,null,null,null,null,null,null,null,null,null,null,null,null,null,null,null,null,null,null,null,null,null,null,null,null,null,null,null,null,null,null,null,null,null,null,null,null,null,null,null,null,null,null,null,null,null,null,null,null,null,null,null,null,null,null,null,null,null,null,null,null,{"$f":"DD3","v":"物　品 用"}]
[]
[null,null,null,null,null,null,null,null,null,null,null,null,null,null,null,null,null,null,null,null,null,null,null,null,null,null,null,null,null,null,null,null,null,null,null,null,null,null,null,"請求書",null,null,null,null,null,null,null,null,null,null,null,null,null,null,null,null,null,null,null,null,null,null,null,null,null,null,null,null,null,null,null,null,null,null,null,null,null,null,null,{"$f":"CB4","v":""},null,null,null,null,null,null,null,null,null,null,null,"年",null,null,{"$f":"CQ4","v":""},null,null,null,null,null,"月",null,null,{"$f":"CZ4","v":""},null,null,null,null,null,"日"]
[null,null,null,null,null,null,null,null,null,null,null,null,null,null,null,null,null,null,null,null,null,null,null,null,null,null,null,null,null,null,null,null,null,null,null,null,null,null,null,null,null,null,null,null,null,null,null,null,null,null,null,null,null,null,null,null,null,null,null,null,null,null,null,null,null,null,null,null,null,null,null,null,null,null,null,null,null,null,null,"【請求者】住所／商号等",null,null,null,null,null,null,null,null,null,null,null,null,null,null,null,null,null,null,null,null,null,null,null,null,null,null,null,null,null,null,null,null,{"$f":"IF(H51=\"\",\"\",H51)","v":""}]
[null,null,null,null,null,null,null,null,null,null,null,null,null,null,null,null,null,null,null,null,null,null,null,null,null,null,null,null,null,"日本フィールドシステム株式会社　御中",null,null,null,null,null,null,null,null,null,null,null,null,null,null,null,null,null,null,null,null,null,null,null,null,null,null,null,null,null,null,null,null,null,null,null,null,null,null,null,null,null,null,null,null,null,null,null,null,null,{"$f":"CB6","v":"【請求者】住所／商号等"}]
[null,null,null,null,null,null,null,null,null,null,null,null,null,null,null,null,null,null,null,null,null,null,null,null,null,null,"下記のとおり請求致します。",null,null,null,null,null,null,null,null,null,null,null,null,null,null,null,null,null,null,null,null,null,null,null,null,null,null,null,null,null,null,null,null,null,null,null,null,null,null,null,null,null,null,null,null,null,null,null,null,null,null,null,null,{"$f":"CB7","v":""}]
[null,null,null,null,null,null,null,null,null,null,null,null,null,null,null,null,null,null,null,null,null,null,null,null,null,null,null,"請 求 金 額\n(消費税込)",null,null,null,null,null,null,null,null,null,null,null,null,null,{"$f":"$AP$8","v":""},null,null,null,{"$f":"$AT$8","v":""},null,null,null,{"$f":"$AX$8","v":""},null,null,null,{"$f":"$BB$8","v":""},null,null,null,{"$f":"$BF$8","v":""},null,null,null,{"$f":"$BJ$8","v":""},null,null,null,{"$f":"$BN$8","v":""},null,null,null,{"$f":"$BR$8","v":""},null,null,null,{"$f":"$BV$8","v":""},null,null,null,null,null,{"$f":"CB8","v":""}]
[null,null,null,null,null,null,null,null,null,null,null,null,null,null,null,null,null,null,null,null,null,null,null,null,null,null,null,null,null,null,null,null,null,null,null,null,null,null,null,null,null,null,null,null,null,null,null,null,null,null,null,null,null,null,null,null,null,null,null,null,null,null,null,null,null,null,null,null,null,null,null,null,null,null,null,null,null,null,null,{"$f":"CB9","v":""},null,null,null,null,null,null,null,null,null,null,null,null,null,null,null,null,null,null,null,null,null,null,null,null,null,null,null,null,null,null,null,null,null,null,null,null,null,null,null,null,null,null,null,null,null,null,"㊞"]
[true,null,null,null,null,null,null,null,null,null,null,null,null,null,null,null,null,null,null,null,null,null,null,null,null,null,null,null,null,null,null,null,null,null,null,null,null,null,null,null,null,null,null,null,null,null,null,null,null,null,null,null,null,null,null,null,null,null,null,null,null,null,null,null,null,null,null,null,null,null,null,null,null,null,null,null,null,null,null,"郵便番号",null,null,null,null,null,null,null,null,{"$f":"CK10","v":""},null,null,null,null,null,null,null,null,null,null,null,null,"電話番号",null,null,null,null,null,null,null,null,{"$f":"DG10","v":""}]
[null,null,null,null,null,null,null,null,null,null,null,null,null,null,null,null,null,null,null,null,null,null,null,null,null,null,null,null,null,null,null,null,null,null,null,null,null,null,null,null,null,null,null,null,null,null,null,null,null,null,null,null,null,null,null,null,null,null,null,null,null,null,null,null,null,null,null,null,null,null,null,null,null,null,null,null,null,null,null,null,null,null,null,null,null,null,null,null,null,null,null,null,null,null,null,null,null,null,null,null,null,null,null,null,null,null,null,null,null,null,{"$f":"IF(P55=\"\",\"\",M55&\"-\"&P55&\"-\"&R55)","v":""}]
[false,null,null,null,null,null,null,null,null,null,null,null,null,null,null,null,null,null,null,null,null,null,null,null,null,null,null,"振込\n先",null,null,null,"金融機関",null,null,{"$f":"AI12","v":0},null,null,null,null,null,null,null,null,null,null,null,null,null,null,null,null,null,null,null,null,null,null,null,null,null,null,"預金種別",null,null,null,null,{"$f":"BO12","v":"普通\n当座"},null,null,null,null,null,null,null,null,null,null,null,null,"口座 名義",null,null,null,null,null,null,null,null,null,null,null,null,null,null,null,null,null,null,null,null,null,null,null,null,null,null,null,null,null,null,null,null,null,null,null,null,null,null,null,null,null,null,null,null,null,null,null,null,null,"(※)カナで記入して下さい。"]
[false,null,null,null,null,null,null,null,null,null,null,null,null,null,null,null,null,null,null,null,null,null,null,null,null,null,null,null,null,null,null,null,null,null,null,null,null,null,null,null,null,null,null,null,null,null,null,null,null,null,null,null,null,null,null,null,null,null,null,null,null,null,null,null,null,null,null,null,null,null,null,null,null,null,null,null,null,null,null,null,null,null,null,null,null,null,{"$f":"H16","v":0}]
[null,null,null,null,null,null,null,null,null,null,null,null,null,null,null,null,null,null,null,null,null,null,null,null,null,null,null,null,null,null,null,"支店",null,null,{"$f":"AI14","v":0},null,null,null,null,null,null,null,null,null,null,null,null,null,null,null,null,null,null,null,null,null,null,null,null,null,null,"口座\n番号",null,null,null,null,{"$f":"BO14","v":""}]
[]
[null,null,null,null,null,null,null,null,null,null,null,null,null,null,null,null,null,null,null,null,{"$f":"U16","v":"納 品 月 日"},null,null,null,null,null,null,null,null,null,null,null,null,{"$f":"AH16","v":"品　　目"},null,null,null,null,null,null,null,null,null,null,null,null,null,null,null,null,null,null,null,null,null,null,null,null,null,{"$f":"BH16","v":"数 量"},null,null,null,null,{"$f":"BM16","v":"単位"},null,null,null,null,null,{"$f":"BS16","v":"単　　価"},null,null,null,null,null,null,null,null,null,null,null,null,{"$f":"CF16","v":"金　　額"},null,null,null,null,null,null,null,null,null,null,null,null,null,null,null,{"$f":"CV16","v":"消費税"},null,null,null,null,null,null,null,null,null,"税率",null,null,null,null,{"$f":"DK16","v":"納品場所・備　考"}]
[null,null,null,null,null,null,null,null,null,null,null,null,null,null,null,null,null,null,null,null,{"$f":"U17","v":""},null,null,null,null,null,null,null,null,null,null,null,null,{"$f":"AH17","v":0},null,null,null,null,null,null,null,null,null,null,null,null,null,null,null,null,null,null,null,null,null,null,null,null,null,{"$f":"BH17","v":0},null,null,null,null,{"$f":"BM17","v":0},null,null,null,null,null,{"$f":"BS17","v":0},null,null,null,null,null,null,null,null,null,null,null,null,{"$f":"CF17","v":0},null,null,null,null,null,null,null,null,null,null,null,null,null,null,null,{"$f":"CV17","v":0},null,null,null,null,null,null,null,null,null,{"$f":"DF17","v":8},null,null,null,null,{"$f":"DK17","v":0}]
[null,null,null,null,null,null,null,null,null,null,null,null,null,null,null,null,null,null,null,null,{"$f":"U18","v":""},null,null,null,null,null,null,null,null,null,null,null,null,{"$f":"AH18","v":0},null,null,null,null,null,null,null,null,null,null,null,null,null,null,null,null,null,null,null,null,null,null,null,null,null,{"$f":"BH18","v":0},null,null,null,null,{"$f":"BM18","v":0},null,null,null,null,null,{"$f":"BS18","v":0},null,null,null,null,null,null,null,null,null,null,null,null,{"$f":"CF18","v":0},null,null,null,null,null,null,null,null,null,null,null,null,null,null,null,{"$f":"CV18","v":0},null,null,null,null,null,null,null,null,null,{"$f":"DF18","v":8},null,null,null,null,{"$f":"DK18","v":0}]
[null,null,null,null,null,null,null,null,null,null,null,null,null,null,null,null,null,null,null,null,"",null,null,null,null,null,null,null,null,null,null,null,null,{"$f":"AH19","v":0},null,null,null,null,null,null,null,null,null,null,null,null,null,null,null,null,null,null,null,null,null,null,null,null,null,0,null,null,null,null,0,null,null,null,null,null,{"$f":"BS19","v":0},null,null,null,null,null,null,null,null,null,null,null,null,0,null,null,null,null,null,null,null,null,null,null,null,null,null,null,null,0,null,null,null,null,null,null,null,null,null,8,null,null,null,null,0]
[null,null,null,null,null,null,null,null,null,null,null,null,null,null,null,null,null,null,null,null,"",null,null,null,null,null,null,null,null,null,null,null,null,0,null,null,null,null,null,null,null,null,null,null,null,null,null,null,null,null,null,null,null,null,null,null,null,null,null,0,null,null,null,null,0,null,null,null,null,null,0,null,null,null,null,null,null,null,null,null,null,null,null,0,null,null,null,null,null,null,null,null,null,null,null,null,null,null,null,0,null,null,null,null,null,null,null,null,null,8,null,null,null,null,0]
[null,null,null,null,null,null,null,null,null,null,null,null,null,null,null,null,null,null,null,null,"",null,null,null,null,null,null,null,null,null,null,null,null,0,null,null,null,null,null,null,null,null,null,null,null,null,null,null,null,null,null,null,null,null,null,null,null,null,null,0,null,null,null,null,0,null,null,null,null,null,0,null,null,null,null,null,null,null,null,null,null,null,null,0,null,null,null,null,null,null,null,null,null,null,null,null,null,null,null,0,null,null,null,null,null,null,null,null,null,8,null,null,null,null,0]
[null,null,null,null,null,null,null,null,null,null,null,null,null,null,null,null,null,null,null,null,"",null,null,null,null,null,null,null,null,null,null,null,null,0,null,null,null,null,null,null,null,null,null,null,null,null,null,null,null,null,null,null,null,null,null,null,null,null,null,0,null,null,null,null,0,null,null,null,null,null,0,null,null,null,null,null,null,null,null,null,null,null,null,0,null,null,null,null,null,null,null,null,null,null,null,null,null,null,null,0,null,null,null,null,null,null,null,null,null,8,null,null,null,null,0]
[null,null,null,null,null,null,null,null,null,null,null,null,null,null,null,null,null,null,null,null,"",null,null,null,null,null,null,null,null,null,null,null,null,0,null,null,null,null,null,null,null,null,null,null,null,null,null,null,null,null,null,null,null,null,null,null,null,null,null,0,null,null,null,null,0,null,null,null,null,null,0,null,null,null,null,null,null,null,null,null,null,null,null,0,null,null,null,null,null,null,null,null,null,null,null,null,null,null,null,0,null,null,null,null,null,null,null,null,null,8,null,null,null,null,0]
[null,null,null,null,null,null,null,null,null,null,null,null,null,null,null,null,null,null,null,null,"",null,null,null,null,null,null,null,null,null,null,null,null,0,null,null,null,null,null,null,null,null,null,null,null,null,null,null,null,null,null,null,null,null,null,null,null,null,null,0,null,null,null,null,0,null,null,null,null,null,0,null,null,null,null,null,null,null,null,null,null,null,null,0,null,null,null,null,null,null,null,null,null,null,null,null,null,null,null,0,null,null,null,null,null,null,null,null,null,8,null,null,null,null,0]
[null,null,null,null,null,null,null,null,null,null,null,null,null,null,null,null,null,null,null,null,"",null,null,null,null,null,null,null,null,null,null,null,null,0,null,null,null,null,null,null,null,null,null,null,null,null,null,null,null,null,null,null,null,null,null,null,null,null,null,0,null,null,null,null,0,null,null,null,null,null,0,null,null,null,null,null,null,null,null,null,null,null,null,0,null,null,null,null,null,null,null,null,null,null,null,null,null,null,null,0,null,null,null,null,null,null,null,null,null,8,null,null,null,null,0]
[null,null,null,null,null,null,null,null,null,null,null,null,null,null,null,null,null,null,null,null,"",null,null,null,null,null,null,null,null,null,null,null,null,0,null,null,null,null,null,null,null,null,null,null,null,null,null,null,null,null,null,null,null,null,null,null,null,null,null,0,null,null,null,null,0,null,null,null,null,null,0,null,null,null,null,null,null,null,null,null,null,null,null,0,null,null,null,null,null,null,null,null,null,null,null,null,null,null,null,0,null,null,null,null,null,null,null,null,null,8,null,null,null,null,0]
[null,null,null,null,null,null,null,null,null,null,null,null,null,null,null,null,null,null,null,null,"",null,null,null,null,null,null,null,null,null,null,null,null,0,null,null,null,null,null,null,null,null,null,null,null,null,null,null,null,null,null,null,null,null,null,null,null,null,null,0,null,null,null,null,0,null,null,null,null,null,0,null,null,null,null,null,null,null,null,null,null,null,null,0,null,null,null,null,null,null,null,null,null,null,null,null,null,null,null,0,null,null,null,null,null,null,null,null,null,8,null,null,null,null,0]
[null,null,null,null,null,null,null,null,null,null,null,null,null,null,null,null,null,null,null,null,"",null,null,null,null,null,null,null,null,null,null,null,null,0,null,null,null,null,null,null,null,null,null,null,null,null,null,null,null,null,null,null,null,null,null,null,null,null,null,0,null,null,null,null,0,null,null,null,null,null,0,null,null,null,null,null,null,null,null,null,null,null,null,{"$f":"CF28","v":0},null,null,null,null,null,null,null,null,null,null,null,null,null,null,null,0,null,null,null,null,null,null,null,null,null,8,null,null,null,null,0]
[null,null,null,null,null,null,null,null,null,null,null,null,null,null,null,null,null,null,null,null,"",null,null,null,null,null,null,null,null,null,null,null,null,0,null,null,null,null,null,null,null,null,null,null,null,null,null,null,null,null,null,null,null,null,null,null,null,null,null,0,null,null,null,null,0,null,null,null,null,null,0,null,null,null,null,null,null,null,null,null,null,null,null,0,null,null,null,null,null,null,null,null,null,null,null,null,null,null,null,0,null,null,null,null,null,null,null,null,null,8,null,null,null,null,0]
[null,null,null,null,null,null,null,null,null,null,null,null,null,null,null,null,null,null,null,null,"",null,null,null,null,null,null,null,null,null,null,null,null,0,null,null,null,null,null,null,null,null,null,null,null,null,null,null,null,null,null,null,null,null,null,null,null,null,null,0,null,null,null,null,0,null,null,null,null,null,0,null,null,null,null,null,null,null,null,null,null,null,null,0,null,null,null,null,null,null,null,null,null,null,null,null,null,null,null,0,null,null,null,null,null,null,null,null,null,8,null,null,null,null,0]
[null,null,null,null,null,null,null,null,null,null,null,null,null,null,null,null,null,null,null,null,"",null,null,null,null,null,null,null,null,null,null,null,null,0,null,null,null,null,null,null,null,null,null,null,null,null,null,null,null,null,null,null,null,null,null,null,null,null,null,0,null,null,null,null,0,null,null,null,null,null,0,null,null,null,null,null,null,null,null,null,null,null,null,0,null,null,null,null,null,null,null,null,null,null,null,null,null,null,null,0,null,null,null,null,null,null,null,null,null,8,null,null,null,null,0]
[null,null,null,null,null,null,null,null,null,null,null,null,null,null,null,null,null,null,null,null,"",null,null,null,null,null,null,null,null,null,null,null,null,0,null,null,null,null,null,null,null,null,null,null,null,null,null,null,null,null,null,null,null,null,null,null,null,null,null,0,null,null,null,null,0,null,null,null,null,null,0,null,null,null,null,null,null,null,null,null,null,null,null,0,null,null,null,null,null,null,null,null,null,null,null,null,null,null,null,0,null,null,null,null,null,null,null,null,null,8,null,null,null,null,0]
[null,null,null,null,null,null,null,null,null,null,null,null,null,null,null,null,null,null,null,null,"",null,null,null,null,null,null,null,null,null,null,null,null,0,null,null,null,null,null,null,null,null,null,null,null,null,null,null,null,null,null,null,null,null,null,null,null,null,null,0,null,null,null,null,0,null,null,null,null,null,0,null,null,null,null,null,null,null,null,null,null,null,null,0,null,null,null,null,null,null,null,null,null,null,null,null,null,null,null,0,null,null,null,null,null,null,null,null,null,8,null,null,null,null,0]
[null,null,null,null,null,null,null,null,null,null,null,null,null,null,null,null,null,null,null,null,"",null,null,null,null,null,null,null,null,null,null,null,null,0,null,null,null,null,null,null,null,null,null,null,null,null,null,null,null,null,null,null,null,null,null,null,null,null,null,0,null,null,null,null,0,null,null,null,null,null,0,null,null,null,null,null,null,null,null,null,null,null,null,0,null,null,null,null,null,null,null,null,null,null,null,null,null,null,null,0,null,null,null,null,null,null,null,null,null,"税込",null,null,null,null,0]
[null,null,null,null,null,null,null,null,null,null,null,null,null,null,null,null,null,null,null,null,"",null,null,null,null,null,null,null,null,null,null,null,null,0,null,null,null,null,null,null,null,null,null,null,null,null,null,null,null,null,null,null,null,null,null,null,null,null,null,0,null,null,null,null,0,null,null,null,null,null,0,null,null,null,null,null,null,null,null,null,null,null,null,0,null,null,null,null,null,null,null,null,null,null,null,null,null,null,null,0,null,null,null,null,null,null,null,null,null,"税込",null,null,null,null,0]
[null,null,null,null,null,null,null,null,null,null,null,null,null,null,null,null,null,null,null,null,"",null,null,null,null,null,null,null,null,null,null,null,null,0,null,null,null,null,null,null,null,null,null,null,null,null,null,null,null,null,null,null,null,null,null,null,null,null,null,0,null,null,null,null,0,null,null,null,null,null,0,null,null,null,null,null,null,null,null,null,null,null,null,0,null,null,null,null,null,null,null,null,null,null,null,null,null,null,null,0,null,null,null,null,null,null,null,null,null,"税込",null,null,null,null,0]
[null,null,null,null,null,null,null,null,null,null,null,null,null,null,null,null,null,null,null,null,{"$f":"U37","v":"　請　求　合　計"},null,null,null,null,null,null,null,null,null,null,null,null,null,null,null,null,null,null,null,null,null,null,null,null,null,null,null,null,null,null,null,null,null,null,null,null,null,null,null,null,null,null,null,null,null,null,null,null,null,null,null,null,null,null,null,null,null,null,null,null,null,null,0,null,null,null,null,null,null,null,null,null,null,null,null,null,null,null,0,null,null,null,null,null,null,null,null,null,0,null,null,null,null,0]
[null,null,null,null,null,null,null,null,null,null,null,null,null,null,null,null,null,null,null,null,null,null,null,null,null,null,null,null,null,null,null,null,null,null,null,null,null,null,null,null,null,null,null,null,null,null,null,null,null,null,null,null,null,null,null,null,null,null,null,null,null,null,null,null,null,null,null,null,null,null,null,null,null,null,null,"以下弊社使用欄"]
[]
[null,null,null,null,null,null,null,null,null,null,null,null,null,null,null,null,null,null,null,null,null,null,"支払条件",null,null,null,null,null,null,null,null,null,null,null,null,null,null,null,null,null,null,null,null,null,null,null,null,null,null,null,null,null,null,null,null,null,null,null,null,null,null,null,null,null,null,null,null,null,null,null,null,null,null,null,null,null,null,null,null,null,null,null,null,null,null,null,null,null,null,null,null,null,null,null,"検印",null,null,null,null,null,null,null,null,null,null,null,"検印",null,null,null,null,null,null,null,null,null,null,null,"検印"]
[null,null,null,null,null,null,null,null,null,null,null,null,null,null,null,null,null,null,null,null,null,null,"□現金100％",null,null,null,null,null,null,null,null,null,null,null,null,null,null,"□手形100％",null,null,null,null,null,null,null,null,null,null,null,null,null,null,null,null,null,"□現金50%手形50％"]
[null,null,null,null,null,null,null,null,null,null,null,null,null,null,null,null,null,null,null,null,null,null,null,"その他"]
[]
[null,null,null,null,null,null,null,null,null,null,null,null,null,null,null,null,null,null,null,null,null,null,null,null,"※10万円以上の場合、手形100％"]
[]
[null,null,null,null,null,null,null,null,null,null,null,null,null,null,null,null,null,null,null,null,null,null,null,null,null,null,null,null,null,null,null,null,null,null,null,null,null,null,null,null,null,null,null,null,null,null,null,null,null,null,null,null,null,null,null,null,null,null,null,null,null,null,null,null,null,null,null,null,null,null,null,null,null,null,null,null,null,null,null,null,null,null,null,null,null,null,null,null,null,null,null,null,null,null,null,null,null,null,null,null,null,null,null,null,null,null,null,null,null,null,null,null,null,null,"＜支店保管用＞"]
[null,null,null,null,null,null,null,null,null,null,null,null,null,null,null,null,null,null,null,null,null,null,null,null,null,null,null,null,"請求者控え"]
[]
[null,null,null,null,null,null,null,null,null,null,null,null,null,null,null,null,null,null,null,null,null,null,null,null,null,null,null,null,null,null,null,null,null,null,null,null,null,null,"請求書",null,null,null,null,null,null,null,null,null,null,null,null,null,null,null,null,null,null,null,null,null,null,null,null,null,null,null,null,null,null,null,null,null,null,null,null,null,null,null,{"$f":"$CB$4","v":""},null,null,null,null,null,null,null,null,null,null,null,"年",null,null,{"$f":"$CQ$4","v":""},null,null,null,null,null,"月",null,null,{"$f":"$CZ$4","v":""},null,null,null,null,null,"日"]
[null,null,null,null,null,null,null,null,null,null,null,null,null,null,null,null,null,null,null,null,null,null,null,null,null,null,null,null,null,null,null,null,null,null,null,null,null,null,null,null,null,null,null,null,null,null,null,null,null,null,null,null,null,null,null,null,null,null,null,null,null,null,null,null,null,null,null,null,null,null,null,null,null,null,null,null,null,null,"【請求者】住所／商号等",null,null,null,null,null,null,null,null,null,null,null,null,null,null,null,null,null,null,null,null,null,null,null,null,null,null,null,null,null,null,null,null,{"$f":"$DI$5","v":""}]
[null,null,null,null,null,null,null,null,null,null,null,null,null,null,null,null,null,null,null,null,null,null,null,null,null,null,"日本フィールドシステム株式会社",null,null,null,null,null,null,null,null,null,null,null,null,null,null,null,null,null,null,null,null,null,null,null,null,null,null,null,null,null,null,null,null,null,null,null,null,null,null,null,null,null,null,null,null,null,null,null,null,null,null,null,{"$f":"$CB$6","v":"【請求者】住所／商号等"}]
[null,null,null,null,null,null,null,null,null,null,null,null,null,null,null,null,null,null,null,null,null,null,null,null,null,null,"下記のとおり請求致します。",null,null,null,null,null,null,null,null,null,null,null,null,null,null,null,null,null,null,null,null,null,null,null,null,null,null,null,null,null,null,null,null,null,null,null,null,null,null,null,null,null,null,null,null,null,null,null,null,null,null,null,{"$f":"$CB$7","v":""}]
[null,null,null,null,null,null,null,null,null,null,null,null,null,null,null,null,null,null,null,null,null,null,null,null,null,null,"請 求 金 額\n(消費税込)",null,null,null,null,null,null,null,null,null,null,null,null,null,{"$f":"$AP$8","v":""},null,null,null,{"$f":"$AT$8","v":""},null,null,null,{"$f":"$AX$8","v":""},null,null,null,{"$f":"$BB$8","v":""},null,null,null,{"$f":"BF8","v":""},null,null,null,{"$f":"$BJ$8","v":""},null,null,null,{"$f":"$BN$8","v":""},null,null,null,{"$f":"$BR$8","v":""},null,null,null,{"$f":"$BV$8","v":""},null,null,null,null,null,{"$f":"$CB$8","v":""}]
[null,null,null,null,null,null,null,null,null,null,null,null,null,null,null,null,null,null,null,null,null,null,null,null,null,null,null,null,null,null,null,null,null,null,null,null,null,null,null,null,null,null,null,null,null,null,null,null,null,null,null,null,null,null,null,null,null,null,null,null,null,null,null,null,null,null,null,null,null,null,null,null,null,null,null,null,null,null,{"$f":"$CB$9","v":""}]
[null,null,null,null,null,null,null,null,null,null,null,null,null,null,null,null,null,null,null,null,null,null,null,null,null,null,null,null,null,null,null,null,null,null,null,null,null,null,null,null,null,null,null,null,null,null,null,null,null,null,null,null,null,null,null,null,null,null,null,null,null,null,null,null,null,null,null,null,null,null,null,null,null,null,null,null,null,null,"郵便番号",null,null,null,null,null,null,null,null,{"$f":"$CK$10","v":""},null,null,null,null,null,null,null,null,null,null,null,null,"電話番号",null,null,null,null,null,null,null,null,{"$f":"$DG$10","v":""}]
[null,null,null,null,null,null,null,null,null,null,null,null,null,null,null,null,null,null,null,null,null,null,null,null,null,null,null,null,null,null,null,null,null,null,null,null,null,null,null,null,null,null,null,null,null,null,null,null,null,null,null,null,null,null,null,null,null,null,null,null,null,null,null,null,null,null,null,null,null,null,null,null,null,null,null,null,null,null,null,null,null,null,null,null,null,null,null,null,null,null,null,null,null,null,null,null,null,null,null,null,null,null,null,null,null,null,null,null,null,{"$f":"$DG$11","v":""}]
[null,null,null,null,null,null,null,null,null,null,null,null,null,null,null,null,null,null,null,null,null,null,null,null,null,null,"振込\n先",null,null,null,"金融機関",null,null,{"$f":"AI12","v":0},null,null,null,null,null,null,null,null,null,null,null,null,null,null,null,null,null,null,null,null,null,null,null,null,null,null,"預金",null,null,null,null,{"$f":"$BO$12","v":"普通\n当座"},null,null,null,null,null,null,null,null,null,null,null,null,"口座\n名義",null,null,null,null,null,null,null,null,null,null,null,null,null,null,null,null,null,null,null,null,null,null,null,null,null,null,null,null,null,null,null,null,null,null,null,null,null,null,null,null,null,null,null,null,null,null,null,null,null,"(※)カナで記入して下さい。"]
[null,null,null,null,null,null,null,null,null,null,null,null,null,null,null,null,null,null,null,null,null,null,null,null,null,null,null,null,null,null,null,null,null,null,null,null,null,null,null,null,null,null,null,null,null,null,null,null,null,null,null,null,null,null,null,null,null,null,null,null,null,null,null,null,null,null,null,null,null,null,null,null,null,null,null,null,null,null,null,null,null,null,null,null,null,{"$f":"H16","v":0}]
[null,null,null,null,null,null,null,null,null,null,null,null,null,null,null,null,null,null,null,null,null,null,null,null,null,null,null,null,null,null,"支店",null,null,{"$f":"AI14","v":0},null,null,null,null,null,null,null,null,null,null,null,null,null,null,null,null,null,null,null,null,null,null,null,null,null,null,"口座\n番号",null,null,null,null,{"$f":"$BO$14","v":""}]
[]
[null,null,null,null,null,null,null,null,null,null,null,null,null,null,null,null,null,null,null,null,{"$f":"U61","v":"納 品 月 日"},null,null,null,null,null,null,null,null,null,null,null,null,{"$f":"AH61","v":"品　　目"},null,null,null,null,null,null,null,null,null,null,null,null,null,null,null,null,null,null,null,null,null,null,null,null,null,{"$f":"BH61","v":"数 量"},null,null,null,null,{"$f":"BM61","v":"単位"},null,null,null,null,null,{"$f":"BS61","v":"単　　価"},null,null,null,null,null,null,null,null,null,null,null,null,{"$f":"CF61","v":"金　　額"},null,null,null,null,null,null,null,null,null,null,null,null,null,null,null,{"$f":"CV61","v":"消費税"},null,null,null,null,null,null,null,null,null,"税率",null,null,null,null,{"$f":"DK61","v":"納品場所・備　考"}]
[null,null,null,null,null,null,null,null,null,null,null,null,null,null,null,null,null,null,null,null,{"$f":"U62","v":""},null,null,null,null,null,null,null,null,null,null,null,null,{"$f":"AH62","v":0},null,null,null,null,null,null,null,null,null,null,null,null,null,null,null,null,null,null,null,null,null,null,null,null,null,{"$f":"BH62","v":0},null,null,null,null,{"$f":"BM62","v":0},null,null,null,null,null,{"$f":"BS62","v":0},null,null,null,null,null,null,null,null,null,null,null,null,{"$f":"CF62","v":0},null,null,null,null,null,null,null,null,null,null,null,null,null,null,null,{"$f":"CV62","v":0},null,null,null,null,null,null,null,null,null,{"$f":"DF62","v":8},null,null,null,null,{"$f":"DK62","v":0}]
[null,null,null,null,null,null,null,null,null,null,null,null,null,null,null,null,null,null,null,null,{"$f":"U63","v":""},null,null,null,null,null,null,null,null,null,null,null,null,{"$f":"AH63","v":0},null,null,null,null,null,null,null,null,null,null,null,null,null,null,null,null,null,null,null,null,null,null,null,null,null,{"$f":"BH63","v":0},null,null,null,null,{"$f":"BM63","v":0},null,null,null,null,null,{"$f":"BS63","v":0},null,null,null,null,null,null,null,null,null,null,null,null,{"$f":"CF63","v":0},null,null,null,null,null,null,null,null,null,null,null,null,null,null,null,{"$f":"CV63","v":0},null,null,null,null,null,null,null,null,null,{"$f":"DF63","v":8},null,null,null,null,{"$f":"DK63","v":0}]
[null,null,null,null,null,null,null,null,null,null,null,null,null,null,null,null,null,null,null,null,"",null,null,null,null,null,null,null,null,null,null,null,null,{"$f":"AH64","v":0},null,null,null,null,null,null,null,null,null,null,null,null,null,null,null,null,null,null,null,null,null,null,null,null,null,0,null,null,null,null,0,null,null,null,null,null,{"$f":"BS64","v":0},null,null,null,null,null,null,null,null,null,null,null,null,0,null,null,null,null,null,null,null,null,null,null,null,null,null,null,null,0,null,null,null,null,null,null,null,null,null,8,null,null,null,null,0]
[null,null,null,null,null,null,null,null,null,null,null,null,null,null,null,null,null,null,null,null,"",null,null,null,null,null,null,null,null,null,null,null,null,0,null,null,null,null,null,null,null,null,null,null,null,null,null,null,null,null,null,null,null,null,null,null,null,null,null,0,null,null,null,null,0,null,null,null,null,null,0,null,null,null,null,null,null,null,null,null,null,null,null,0,null,null,null,null,null,null,null,null,null,null,null,null,null,null,null,0,null,null,null,null,null,null,null,null,null,8,null,null,null,null,0]
[null,null,null,null,null,null,null,null,null,null,null,null,null,null,null,null,null,null,null,null,"",null,null,null,null,null,null,null,null,null,null,null,null,0,null,null,null,null,null,null,null,null,null,null,null,null,null,null,null,null,null,null,null,null,null,null,null,null,null,0,null,null,null,null,0,null,null,null,null,null,0,null,null,null,null,null,null,null,null,null,null,null,null,{"$f":"CF66","v":0},null,null,null,null,null,null,null,null,null,null,null,null,null,null,null,0,null,null,null,null,null,null,null,null,null,8,null,null,null,null,0]
[null,null,null,null,null,null,null,null,null,null,null,null,null,null,null,null,null,null,null,null,"",null,null,null,null,null,null,null,null,null,null,null,null,0,null,null,null,null,null,null,null,null,null,null,null,null,null,null,null,null,null,null,null,null,null,null,null,null,null,0,null,null,null,null,0,null,null,null,null,null,0,null,null,null,null,null,null,null,null,null,null,null,null,0,null,null,null,null,null,null,null,null,null,null,null,null,null,null,null,0,null,null,null,null,null,null,null,null,null,8,null,null,null,null,0]
[null,null,null,null,null,null,null,null,null,null,null,null,null,null,null,null,null,null,null,null,"",null,null,null,null,null,null,null,null,null,null,null,null,0,null,null,null,null,null,null,null,null,null,null,null,null,null,null,null,null,null,null,null,null,null,null,null,null,null,0,null,null,null,null,0,null,null,null,null,null,0,null,null,null,null,null,null,null,null,null,null,null,null,0,null,null,null,null,null,null,null,null,null,null,null,null,null,null,null,0,null,null,null,null,null,null,null,null,null,8,null,null,null,null,0]
[null,null,null,null,null,null,null,null,null,null,null,null,null,null,null,null,null,null,null,null,"",null,null,null,null,null,null,null,null,null,null,null,null,0,null,null,null,null,null,null,null,null,null,null,null,null,null,null,null,null,null,null,null,null,null,null,null,null,null,0,null,null,null,null,0,null,null,null,null,null,0,null,null,null,null,null,null,null,null,null,null,null,null,0,null,null,null,null,null,null,null,null,null,null,null,null,null,null,null,0,null,null,null,null,null,null,null,null,null,8,null,null,null,null,0]
[null,null,null,null,null,null,null,null,null,null,null,null,null,null,null,null,null,null,null,null,"",null,null,null,null,null,null,null,null,null,null,null,null,0,null,null,null,null,null,null,null,null,null,null,null,null,null,null,null,null,null,null,null,null,null,null,null,null,null,0,null,null,null,null,0,null,null,null,null,null,0,null,null,null,null,null,null,null,null,null,null,null,null,0,null,null,null,null,null,null,null,null,null,null,null,null,null,null,null,0,null,null,null,null,null,null,null,null,null,8,null,null,null,null,0]
[null,null,null,null,null,null,null,null,null,null,null,null,null,null,null,null,null,null,null,null,"",null,null,null,null,null,null,null,null,null,null,null,null,0,null,null,null,null,null,null,null,null,null,null,null,null,null,null,null,null,null,null,null,null,null,null,null,null,null,0,null,null,null,null,0,null,null,null,null,null,0,null,null,null,null,null,null,null,null,null,null,null,null,0,null,null,null,null,null,null,null,null,null,null,null,null,null,null,null,0,null,null,null,null,null,null,null,null,null,8,null,null,null,null,0]
[null,null,null,null,null,null,null,null,null,null,null,null,null,null,null,null,null,null,null,null,"",null,null,null,null,null,null,null,null,null,null,null,null,0,null,null,null,null,null,null,null,null,null,null,null,null,null,null,null,null,null,null,null,null,null,null,null,null,null,0,null,null,null,null,0,null,null,null,null,null,0,null,null,null,null,null,null,null,null,null,null,null,null,0,null,null,null,null,null,null,null,null,null,null,null,null,null,null,null,0,null,null,null,null,null,null,null,null,null,8,null,null,null,null,0]
[null,null,null,null,null,null,null,null,null,null,null,null,null,null,null,null,null,null,null,null,"",null,null,null,null,null,null,null,null,null,null,null,null,0,null,null,null,null,null,null,null,null,null,null,null,null,null,null,null,null,null,null,null,null,null,null,null,null,null,0,null,null,null,null,0,null,null,null,null,null,0,null,null,null,null,null,null,null,null,null,null,null,null,{"$f":"CF73","v":0},null,null,null,null,null,null,null,null,null,null,null,null,null,null,null,0,null,null,null,null,null,null,null,null,null,8,null,null,null,null,0]
[null,null,null,null,null,null,null,null,null,null,null,null,null,null,null,null,null,null,null,null,"",null,null,null,null,null,null,null,null,null,null,null,null,0,null,null,null,null,null,null,null,null,null,null,null,null,null,null,null,null,null,null,null,null,null,null,null,null,null,0,null,null,null,null,0,null,null,null,null,null,0,null,null,null,null,null,null,null,null,null,null,null,null,0,null,null,null,null,null,null,null,null,null,null,null,null,null,null,null,0,null,null,null,null,null,null,null,null,null,8,null,null,null,null,0]
[null,null,null,null,null,null,null,null,null,null,null,null,null,null,null,null,null,null,null,null,"",null,null,null,null,null,null,null,null,null,null,null,null,0,null,null,null,null,null,null,null,null,null,null,null,null,null,null,null,null,null,null,null,null,null,null,null,null,null,0,null,null,null,null,0,null,null,null,null,null,0,null,null,null,null,null,null,null,null,null,null,null,null,0,null,null,null,null,null,null,null,null,null,null,null,null,null,null,null,0,null,null,null,null,null,null,null,null,null,8,null,null,null,null,0]
[null,null,null,null,null,null,null,null,null,null,null,null,null,null,null,null,null,null,null,null,"",null,null,null,null,null,null,null,null,null,null,null,null,0,null,null,null,null,null,null,null,null,null,null,null,null,null,null,null,null,null,null,null,null,null,null,null,null,null,0,null,null,null,null,0,null,null,null,null,null,0,null,null,null,null,null,null,null,null,null,null,null,null,0,null,null,null,null,null,null,null,null,null,null,null,null,null,null,null,0,null,null,null,null,null,null,null,null,null,8,null,null,null,null,0]
[null,null,null,null,null,null,null,null,null,null,null,null,null,null,null,null,null,null,null,null,"",null,null,null,null,null,null,null,null,null,null,null,null,0,null,null,null,null,null,null,null,null,null,null,null,null,null,null,null,null,null,null,null,null,null,null,null,null,null,0,null,null,null,null,0,null,null,null,null,null,0,null,null,null,null,null,null,null,null,null,null,null,null,0,null,null,null,null,null,null,null,null,null,null,null,null,null,null,null,0,null,null,null,null,null,null,null,null,null,8,null,null,null,null,0]
[null,null,null,null,null,null,null,null,null,null,null,null,null,null,null,null,null,null,null,null,"",null,null,null,null,null,null,null,null,null,null,null,null,0,null,null,null,null,null,null,null,null,null,null,null,null,null,null,null,null,null,null,null,null,null,null,null,null,null,0,null,null,null,null,0,null,null,null,null,null,0,null,null,null,null,null,null,null,null,null,null,null,null,0,null,null,null,null,null,null,null,null,null,null,null,null,null,null,null,0,null,null,null,null,null,null,null,null,null,8,null,null,null,null,0]
[null,null,null,null,null,null,null,null,null,null,null,null,null,null,null,null,null,null,null,null,"",null,null,null,null,null,null,null,null,null,null,null,null,0,null,null,null,null,null,null,null,null,null,null,null,null,null,null,null,null,null,null,null,null,null,null,null,null,null,0,null,null,null,null,0,null,null,null,null,null,0,null,null,null,null,null,null,null,null,null,null,null,null,0,null,null,null,null,null,null,null,null,null,null,null,null,null,null,null,0,null,null,null,null,null,null,null,null,null,"税込",null,null,null,null,0]
[null,null,null,null,null,null,null,null,null,null,null,null,null,null,null,null,null,null,null,null,"",null,null,null,null,null,null,null,null,null,null,null,null,0,null,null,null,null,null,null,null,null,null,null,null,null,null,null,null,null,null,null,null,null,null,null,null,null,null,0,null,null,null,null,0,null,null,null,null,null,0,null,null,null,null,null,null,null,null,null,null,null,null,0,null,null,null,null,null,null,null,null,null,null,null,null,null,null,null,0,null,null,null,null,null,null,null,null,null,"税込",null,null,null,null,0]
[null,null,null,null,null,null,null,null,null,null,null,null,null,null,null,null,null,null,null,null,"",null,null,null,null,null,null,null,null,null,null,null,null,0,null,null,null,null,null,null,null,null,null,null,null,null,null,null,null,null,null,null,null,null,null,null,null,null,null,0,null,null,null,null,0,null,null,null,null,null,0,null,null,null,null,null,null,null,null,null,null,null,null,0,null,null,null,null,null,null,null,null,null,null,null,null,null,null,null,0,null,null,null,null,null,null,null,null,null,"税込",null,null,null,null,0]
[null,null,null,null,null,null,null,null,null,null,null,null,null,null,null,null,null,null,null,null,"　請　求　合　計",null,null,null,null,null,null,null,null,null,null,null,null,null,null,null,null,null,null,null,null,null,null,null,null,null,null,null,null,null,null,null,null,null,null,null,null,null,null,null,null,null,null,null,null,null,null,null,null,null,null,null,null,null,null,null,null,null,null,null,null,null,null,0,null,null,null,null,null,null,null,null,null,null,null,null,null,null,null,0,null,null,null,null,null,null,null,null,null,0,null,null,null,null,0]